bitfinex/quotes_BTCUSD_20230906
["timestamp","ask_amount","ask_price","bid_price","bid_amount"]
[1693968112785,0.32536051,25838.0,25836.0,3.216952]
[1693968112786,0.23240036,25838.0,25836.0,3.216952]
[1693968113010,0.09296014,25838.0,25836.0,3.216952]
[1693968114267,0.09296014,25838.0,25836.0,3.217952]
[1693968114390,0.09296014,25838.0,25836.0,3.224952]
[1693968114621,0.09296014,25838.0,25836.0,3.223952]
[1693968114823,0.09296014,25838.0,25836.0,2.449839]
[1693968115084,0.09296014,25838.0,25836.0,2.454839]
[1693968115870,0.09296014,25838.0,25836.0,1.680726]
[1693968116124,0.33545694,25838.0,25836.0,1.680726]
[1693968118687,0.33545694,25838.0,25836.0,0.906613]
[1693968118885,0.72210221,25838.0,25836.0,0.906613]
[1693968119032,0.72210221,25838.0,25836.0,1.680726]
[1693968119203,0.72195438,25838.0,25836.0,1.680726]
[1693968119604,0.72195438,25838.0,25836.0,2.454839]
[1693968119804,0.09281231,25838.0,25836.0,2.454839]
[1693968120659,0.23203078,25839.0,25836.0,3.288952]
[1693968121051,0.09281231,25839.0,25837.0,0.1205]
[1693968121229,0.09281231,25839.0,25838.0,2.322159]
[1693968122694,0.09281231,25839.0,25838.0,2.323159]
[1693968123468,0.09281231,25839.0,25838.0,2.324159]
[1693968123668,0.09281231,25839.0,25838.0,2.17145556]
[1693968126722,0.09281231,25839.0,25838.0,2.17045556]
[1693968127317,0.09281231,25839.0,25838.0,2.16945556]
[1693968127732,0.09281231,25839.0,25838.0,2.17045556]
[1693968128136,0.09281231,25839.0,25838.0,2.16945556]
[1693968130372,0.28281231,25839.0,25838.0,2.16945556]
[1693968132689,0.19,25839.0,25838.0,2.16945556]
[1693968133105,0.19,25839.0,25838.0,2.28995556]
[1693968133699,0.19,25839.0,25838.0,2.30195556]
[1693968134343,0.19,25839.0,25838.0,2.29695556]
[1693968134950,0.19,25839.0,25838.0,2.30195556]
[1693968135295,0.19,25839.0,25838.0,2.29495556]
[1693968135698,0.19,25839.0,25838.0,3.07600856]
[1693968147014,0.19,25839.0,25838.0,3.06900856]
[1693968147221,0.19,25839.0,25838.0,3.08000856]
[1693968147424,0.19,25839.0,25838.0,3.07700856]
[1693968148753,0.19,25839.0,25838.0,3.09300856]
[1693968152066,0.28281231,25839.0,25838.0,3.09300856]
[1693968155251,0.28281231,25839.0,25838.0,3.17300856]
[1693968155484,0.19,25839.0,25838.0,3.47300856]
[1693968158828,0.19,25839.0,25838.0,4.58860562]
[1693968160395,0.19,25839.0,25838.0,4.5886005]
[1693968161438,0.19,25839.0,25838.0,4.5286005]
[1693968161845,0.19,25839.0,25838.0,4.5086005]
[1693968164478,0.19,25839.0,25838.0,3.39300856]
[1693968174865,0.17972895,25839.0,25838.0,3.39300856]
[1693968184534,0.17972895,25839.0,25838.0,3.40616188]
[1693968185784,0.09781231,25840.0,25838.0,3.40616188]
[1693968185993,0.09781231,25840.0,25839.0,0.4205]
[1693968186198,0.09781231,25840.0,25839.0,3.516592]
[1693968187031,0.09781231,25840.0,25839.0,3.52960011]
[1693968187455,0.09781231,25840.0,25839.0,3.53660011]
[1693968188341,0.09781231,25840.0,25839.0,3.54160011]
[1693968188522,0.005,25840.0,25839.0,3.54160011]
[1693968189483,0.09781231,25840.0,25839.0,3.54160011]
[1693968192082,0.005,25840.0,25839.0,3.54160011]
[1693968194142,0.185,25840.0,25839.0,3.54160011]
[1693968195618,0.27781231,25840.0,25839.0,3.54160011]
[1693968196034,0.185,25840.0,25839.0,3.54160011]
[1693968196433,0.185,25840.0,25839.0,4.65716121]
[1693968197252,0.185,25840.0,25839.0,3.54160011]
[1693968205099,0.185,25840.0,25839.0,3.53460011]
[1693968205503,0.185,25840.0,25839.0,3.55060011]
[1693968205656,0.185,25840.0,25839.0,3.54560011]
[1693968206186,0.185,25840.0,25839.0,3.55860011]
[1693968210200,0.185,25840.0,25839.0,4.79415766]
[1693968210816,0.185,25840.0,25839.0,4.77415766]
[1693968211229,0.185,25840.0,25839.0,5.18185766]
[1693968211637,0.185,25840.0,25839.0,5.61950293]
[1693968211844,0.185,25840.0,25839.0,5.64450293]
[1693968212053,0.185,25840.0,25839.0,5.66950293]
[1693968212669,0.185,25840.0,25839.0,5.64450293]
[1693968213166,0.185,25840.0,25839.0,5.61950293]
[1693968213372,0.185,25840.0,25839.0,5.64450293]
[1693968214033,0.185,25840.0,25839.0,5.23680293]
[1693968214464,0.185,25840.0,25839.0,4.85015766]
[1693968215105,0.185,25840.0,25839.0,4.87515766]
[1693968222312,0.46835257,25840.0,25839.0,2.80557711]
[1693968222519,0.46835257,25840.0,25839.0,3.92102053]
[1693968223131,0.46835257,25840.0,25839.0,3.89602053]
[1693968223338,0.46835257,25840.0,25839.0,3.92102053]
[1693968223989,0.46835257,25840.0,25839.0,3.89602053]
[1693968224199,0.46835257,25840.0,25839.0,3.92102053]
[1693968224608,0.46835257,25840.0,25839.0,3.12199753]
[1693968224791,0.46835257,25840.0,25839.0,3.92102053]
[1693968225524,0.46835257,25840.0,25839.0,3.89602053]
[1693968225928,0.46835257,25840.0,25839.0,3.92102053]
[1693968226332,0.46835257,25840.0,25839.0,3.89602053]
[1693968227469,0.46835257,25840.0,25839.0,3.92102053]
[1693968229318,0.46835257,25840.0,25839.0,4.69504353]
[1693968230325,0.46835257,25840.0,25839.0,3.92102053]
[1693968231335,0.46835257,25840.0,25839.0,4.69504353]
[1693968231913,0.46835257,25840.0,25839.0,3.92102053]
[1693968240343,0.46835257,25840.0,25839.0,3.87102053]
[1693968240547,0.46835257,25840.0,25839.0,1.42845153]
[1693968240548,0.85499784,25840.0,25839.0,1.42845153]
[1693968240755,0.85499784,25840.0,25839.0,1.47845153]
[1693968240957,0.85499784,25840.0,25839.0,2.25247453]
[1693968241164,0.85499784,25840.0,25839.0,2.22747453]
[1693968241764,0.85499784,25840.0,25839.0,2.25247453]
[1693968241972,0.85499784,25840.0,25839.0,2.20247453]
[1693968242182,0.85499784,25840.0,25839.0,2.22547453]
[1693968242387,3.22682035,25840.0,25839.0,0.06100811]
[1693968242589,3.34732035,25840.0,25839.0,0.06100811]
[1693968243426,3.01412427,25840.0,25839.0,0.06100811]
[1693968243629,3.13553278,25840.0,25839.0,0.06100811]
[1693968243855,2.36153978,25840.0,25839.0,0.06100811]
[1693968248146,3.13553278,25840.0,25839.0,0.06100811]
[1693968251287,2.36153978,25840.0,25839.0,0.06100811]
[1693968254562,2.49513122,25840.0,25839.0,0.06100811]
[1693968254770,2.36153978,25840.0,25839.0,0.06100811]
[1693968260547,1.58754678,25840.0,25839.0,0.06100811]
[1693968263053,0.81355378,25840.0,25839.0,0.06100811]
[1693968264354,1.58754678,25840.0,25839.0,0.06100811]
[1693968265114,0.81355378,25840.0,25839.0,0.06100811]
[1693968266327,1.58754678,25840.0,25839.0,0.06100811]
[1693968267314,0.81355378,25840.0,25839.0,0.06100811]
[1693968277213,1.58754678,25840.0,25839.0,0.06100811]
[1693968281284,2.36153978,25840.0,25839.0,0.06100811]
[1693968281481,0.42690851,25840.0,25839.0,0.83503111]
[1693968281685,0.42690851,25840.0,25839.0,2.50357711]
[1693968281820,0.42690851,25840.0,25839.0,1.72955411]
[1693968285762,1.58754678,25840.0,25839.0,0.06100811]
[1693968289625,1.68048514,25840.0,25839.0,0.06100811]
[1693968294268,0.90649214,25840.0,25839.0,0.06100811]
[1693968294644,0.81355378,25840.0,25839.0,0.06100811]
[1693968302057,0.81355378,25840.0,25839.0,0.83503111]
[1693968302260,0.81355378,25840.0,25839.0,1.60905411]
[1693968302746,0.42690851,25840.0,25839.0,2.50357711]
[1693968305819,0.42690851,25840.0,25839.0,3.27760011]
[1693968306038,0.185,25840.0,25839.0,3.27760011]
[1693968316593,0.185,25840.0,25839.0,2.50357711]
[1693968332426,0.185,25840.0,25839.0,2.490569]
[1693968337335,0.18,25840.0,25839.0,2.490569]
[1693968345962,0.44431413,25840.0,25839.0,1.716546]
[1693968346163,0.44431413,25840.0,25839.0,0.822023]
[1693968347766,0.44431413,25840.0,25839.0,0.048]
[1693968347983,1.74253141,25840.0,25839.0,0.048]
[1693968348334,2.25221028,25840.0,25839.0,0.048]
[1693968348664,3.02620328,25840.0,25839.0,0.048]
[1693968349221,2.88862427,25840.0,25839.0,0.048]
[1693968349429,3.66261727,25840.0,25839.0,0.048]
[1693968351626,4.03957835,25840.0,25839.0,0.048]
[1693968351835,3.85957835,25840.0,25839.0,0.048]
[1693968355109,3.63749527,25840.0,25839.0,0.048]
[1693968355430,3.75799527,25840.0,25839.0,0.048]
[1693968355612,4.14464054,25840.0,25839.0,0.048]
[1693968357252,4.43755212,25840.0,25839.0,0.048]
[1693968357618,4.31705212,25840.0,25839.0,0.048]
[1693968363319,3.15641385,25840.0,25839.0,0.048]
[1693968364141,3.33641385,25840.0,25839.0,0.048]
[1693968382700,2.56242085,25840.0,25839.0,0.048]
[1693968384118,1.01443485,25840.0,25839.0,0.048]
[1693968384511,0.85955685,25840.0,25839.0,0.048]
[1693968384727,1.63354985,25840.0,25839.0,0.048]
[1693968385943,0.85955685,25840.0,25839.0,0.048]
[1693968387227,0.85955685,25840.0,25839.0,0.822023]
[1693968388214,0.85955685,25840.0,25839.0,0.048]
[1693968390868,0.95233542,25840.0,25839.0,0.048]
[1693968392427,0.95233542,25840.0,25839.0,1.596046]
[1693968392634,0.85955685,25840.0,25839.0,2.370069]
[1693968396382,0.47291158,25840.0,25839.0,2.370069]
[1693968397013,0.47291158,25840.0,25839.0,1.596046]
[1693968400738,0.47291158,25840.0,25839.0,0.822023]
[1693968401768,0.47291158,25840.0,25839.0,0.048]
[1693968403247,0.47291158,25840.0,25839.0,0.1685]
[1693968407751,1.24690458,25840.0,25839.0,0.1685]
[1693968408336,1.24690458,25840.0,25839.0,0.048]
[1693968408337,4.28530805,25840.0,25839.0,0.048]
[1693968409077,4.37808662,25840.0,25839.0,0.048]
[1693968418427,4.04830742,25840.0,25839.0,0.048]
[1693968418711,3.27431442,25840.0,25839.0,0.048]
[1693968425083,3.27431442,25840.0,25839.0,0.051864]
[1693968426684,0.95233542,25840.0,25839.0,0.172364]
[1693968427112,0.85955685,25840.0,25839.0,0.172364]
[1693968429387,0.85955685,25840.0,25839.0,0.051864]
[1693968430445,1.63354985,25840.0,25839.0,0.051864]
[1693968431305,0.85955685,25840.0,25839.0,0.051864]
[1693968432292,1.63354985,25840.0,25839.0,0.051864]
[1693968433670,2.40754285,25840.0,25839.0,0.051864]
[1693968440474,3.5264794,25840.0,25839.0,0.051864]
[1693968441141,2.40754285,25840.0,25839.0,0.051864]
[1693968441582,2.40754285,25840.0,25839.0,0.172364]
[1693968441992,1.63354985,25840.0,25839.0,0.172364]
[1693968442621,0.85955685,25840.0,25839.0,0.172364]
[1693968443728,1.63354985,25840.0,25839.0,0.172364]
[1693968444090,0.85955685,25840.0,25839.0,0.172364]
[1693968446875,1.63354985,25840.0,25839.0,0.172364]
[1693968447277,0.85955685,25840.0,25839.0,0.172364]
[1693968448449,0.18,25840.0,25839.0,2.494433]
[1693968449456,0.18,25840.0,25839.0,2.794433]
[1693968451669,0.18,25840.0,25839.0,2.934433]
[1693968471268,0.18,25840.0,25839.0,2.911433]
[1693968471432,0.18,25840.0,25839.0,2.886433]
[1693968471827,0.18,25840.0,25839.0,2.911433]
[1693968472095,0.18,25840.0,25839.0,2.886433]
[1693968472503,0.18,25840.0,25839.0,2.911433]
[1693968472738,0.18,25840.0,25839.0,2.936433]
[1693968473204,0.18,25840.0,25839.0,2.911433]
[1693968473503,0.18,25840.0,25839.0,2.936433]
[1693968476310,0.18,25840.0,25839.0,3.056933]
[1693968478355,0.18,25840.0,25839.0,3.85127827]
[1693968483633,0.18,25840.0,25839.0,3.94368225]
[1693968485450,0.18,25840.0,25839.0,3.92368225]
[1693968490747,0.18,25840.0,25839.0,3.98368225]
[1693968491429,0.18,25840.0,25839.0,4.04121631]
[1693968491639,0.18,25840.0,25839.0,4.17982229]
[1693968492619,0.18,25840.0,25839.0,4.63728674]
[1693968493410,0.18,25840.0,25839.0,4.54488276]
[1693968494696,0.18,25840.0,25839.0,4.72969073]
[1693968503926,0.18,25840.0,25839.0,4.59108475]
[1693968509350,0.18,25840.0,25839.0,4.57108475]
[1693968516003,0.18,25840.0,25839.0,4.55108475]
[1693968516419,0.18,25840.0,25839.0,3.75673948]
[1693968516627,0.18,25840.0,25839.0,3.63623948]
[1693968516834,0.18,25840.0,25839.0,3.77502966]
[1693968517270,0.18,25840.0,25839.0,3.56522131]
[1693968517675,0.18,25840.0,25839.0,3.54522131]
[1693968518749,0.18,25840.0,25839.0,3.54523033]
[1693968519478,0.18,25840.0,25839.0,2.8889757]
[1693968519706,0.18,25840.0,25839.0,2.1149527]
[1693968519904,0.43748708,25840.0,25839.0,2.02241]
[1693968520108,0.43748708,25840.0,25839.0,2.796433]
[1693968520654,0.43748708,25840.0,25839.0,2.771433]
[1693968521009,0.43748708,25840.0,25839.0,2.796433]
[1693968521441,0.43748708,25840.0,25839.0,2.771433]
[1693968521642,0.43748708,25840.0,25839.0,2.796433]
[1693968522201,0.18,25840.0,25839.0,2.796433]
[1693968534021,0.4242831,25840.0,25839.0,2.796433]
[1693968536582,0.18,25840.0,25839.0,2.796433]
[1693968555322,0.40412137,25840.0,25839.0,2.02241]
[1693968556977,0.40412137,25840.0,25839.0,2.796433]
[1693968564345,1.40105041,25840.0,25839.0,0.053864]
[1693968564551,3.04186759,25840.0,25839.0,0.053864]
[1693968564758,2.26787459,25840.0,25839.0,0.053864]
[1693968565186,2.17504341,25840.0,25839.0,0.028864]
[1693968565381,2.32991841,25840.0,25839.0,0.028864]
[1693968565622,2.57683631,25840.0,25839.0,0.028864]
[1693968566216,2.57683631,25840.0,25839.0,0.053864]
[1693968566430,2.55683631,25840.0,25839.0,0.053864]
[1693968566609,2.57683631,25840.0,25839.0,0.053864]
[1693968566812,2.57683631,25840.0,25839.0,0.028864]
[1693968567216,1.80284331,25840.0,25839.0,0.051864]
[1693968568130,2.57683631,25840.0,25839.0,0.051864]
[1693968569506,2.32991841,25840.0,25839.0,0.051864]
[1693968577411,2.55111187,25840.0,25839.0,0.051864]
[1693968577833,1.73670673,25840.0,25839.0,0.051864]
[1693968578224,0.96271373,25840.0,25839.0,0.051864]
[1693968579300,0.80783873,25840.0,25839.0,1.59991]
[1693968580879,0.80783873,25840.0,25839.0,0.825887]
[1693968581083,0.80783873,25840.0,25839.0,0.051864]
[1693968581742,1.1442965,25840.0,25839.0,0.051864]
[1693968582884,0.80783873,25840.0,25839.0,0.051864]
[1693968587531,0.58664527,25840.0,25839.0,0.051864]
[1693968587733,2.90862427,25840.0,25839.0,0.051864]
[1693968589119,2.13463127,25840.0,25839.0,0.051864]
[1693968590349,2.90862427,25840.0,25839.0,0.051864]
[1693968591339,0.8583746,25840.0,25839.0,0.051864]
[1693968597979,0.8583746,25840.0,25839.0,0.825887]
[1693968598731,0.8383746,25840.0,25839.0,0.825887]
[1693968598934,0.8583746,25840.0,25839.0,0.825887]
[1693968599546,0.8583746,25840.0,25839.0,1.59991]
[1693968599959,0.8583746,25840.0,25839.0,0.825887]
[1693968601254,0.8583746,25840.0,25839.0,0.051864]
[1693968602313,0.8583746,25840.0,25839.0,1.59991]
[1693968602928,0.18,25840.0,25839.0,0.946387]
[1693968603145,0.18,25840.0,25839.0,1.72041]
[1693968603387,0.18,25840.0,25839.0,2.494433]
[1693968632247,0.191622,25840.0,25839.0,2.494433]
[1693968635013,0.18,25840.0,25839.0,2.494433]
[1693968635582,0.18,25840.0,25839.0,2.469433]
[1693968636004,0.18,25840.0,25839.0,2.471433]
[1693968636201,0.18,25840.0,25839.0,2.446433]
[1693968636646,0.18,25840.0,25839.0,2.496433]
[1693968637829,0.19138424,25840.0,25839.0,2.496433]
[1693968638030,0.18,25840.0,25839.0,2.496433]
[1693968639663,0.19138424,25840.0,25839.0,2.496433]
[1693968640357,0.19138424,25840.0,25839.0,2.796433]
[1693968641979,0.18,25840.0,25839.0,2.796433]
[1693968643586,0.19138424,25840.0,25839.0,2.796433]
[1693968658790,0.19138424,25840.0,25839.0,2.88884157]
[1693968663278,0.18,25840.0,25839.0,2.88884157]
[1693968663477,0.18,25840.0,25839.0,4.00425194]
[1693968663681,0.19122338,25840.0,25839.0,4.00425194]
[1693968664298,0.18,25840.0,25839.0,4.02425194]
[1693968664498,0.18,25840.0,25839.0,5.73479943]
[1693968664750,0.18,25840.0,25839.0,5.87353089]
[1693968665312,0.18,25840.0,25839.0,5.82353089]
[1693968665535,0.18,25840.0,25839.0,5.84853089]
[1693968665735,0.18,25840.0,25839.0,5.87353089]
[1693968666154,0.18,25840.0,25839.0,5.84853089]
[1693968666364,0.18,25840.0,25839.0,5.87353089]
[1693968666569,0.18,25840.0,25839.0,5.68871374]
[1693968666949,0.18,25840.0,25839.0,5.78118786]
[1693968667152,0.18,25840.0,25839.0,5.68871374]
[1693968667352,0.18,25840.0,25839.0,5.66371374]
[1693968667739,0.18,25840.0,25839.0,5.78118354]
[1693968668703,0.18,25840.0,25839.0,5.3237129]
[1693968669093,0.179704,25840.0,25839.0,5.3237129]
[1693968669287,0.179704,25840.0,25839.0,4.5496899]
[1693968670246,0.179704,25840.0,25839.0,4.41095844]
[1693968671869,0.179704,25840.0,25839.0,4.02431317]
[1693968672278,0.19092738,25840.0,25839.0,4.02431317]
[1693968672897,0.19092738,25840.0,25839.0,3.93184337]
[1693968673119,0.19092738,25840.0,25839.0,3.91184337]
[1693968673120,0.47057223,25840.0,25839.0,3.91184337]
[1693968673324,0.47057223,25840.0,25839.0,3.13782037]
[1693968673962,0.47057223,25840.0,25839.0,3.91184337]
[1693968692821,0.19092738,25840.0,25839.0,3.91184337]
[1693968693845,0.179704,25840.0,25839.0,3.91184337]
[1693968694319,0.19287938,25840.0,25839.0,3.91184337]
[1693968695255,0.179704,25840.0,25839.0,3.91184337]
[1693968696229,0.179704,25840.0,25839.0,4.29848864]
[1693968696444,0.179704,25840.0,25839.0,3.91184337]
[1693968701112,0.179704,25840.0,25839.0,3.93184337]
[1693968703874,0.179704,25840.0,25839.0,3.15782037]
[1693968704299,0.179704,25840.0,25839.0,3.93184337]
[1693968706868,0.179704,25840.0,25839.0,4.31848864]
[1693968709212,0.179704,25840.0,25839.0,5.53535447]
[1693968709414,0.179704,25840.0,25839.0,5.48288467]
[1693968710327,0.179704,25840.0,25839.0,4.95468467]
[1693968711701,0.179704,25840.0,25839.0,5.36238467]
[1693968718126,0.139504,25840.0,25839.0,5.36238467]
[1693968719322,0.139504,25840.0,25839.0,5.45467465]
[1693968721639,0.139504,25840.0,25839.0,5.40846255]
[1693968722039,0.139504,25840.0,25839.0,5.60196255]
[1693968722241,0.139504,25840.0,25839.0,5.40846255]
[1693968723493,0.139504,25840.0,25839.0,5.54705937]
[1693968723878,0.139504,25840.0,25839.0,5.36225003]
[1693968727848,0.139504,25840.0,25839.0,5.55575003]
[1693968728487,0.1641,25843.0,25840.0,0.1405]
[1693968728636,0.1641,25843.0,25842.0,0.1205]
[1693968728846,0.1641,25843.0,25842.0,2.30984337]
[1693968729277,0.0497211,25845.0,25842.0,3.85770937]
[1693968729471,0.1916211,25845.0,25844.0,0.1205]
[1693968729679,0.0347211,25845.0,25844.0,1.668248]
[1693968729848,0.26139957,25846.0,25844.0,0.894374]
[1693968730053,0.26139957,25846.0,25845.0,0.1205]
[1693968730279,0.26139957,25846.0,25844.0,1.5155682]
[1693968730483,0.26139957,25846.0,25845.0,0.894344]
[1693968730885,0.38802,25846.0,25845.0,0.1205]
[1693968731346,0.23212543,25846.0,25845.0,0.1205]
[1693968731550,0.23212543,25846.0,25845.0,0.1275]
[1693968731759,0.23212543,25846.0,25845.0,0.901344]
[1693968732184,0.23212543,25846.0,25845.0,0.906344]
[1693968732388,0.0199,25846.0,25845.0,0.906344]
[1693968732764,0.0199,25846.0,25845.0,0.74909977]
[1693968733193,0.0199,25846.0,25845.0,1.64344377]
[1693968734004,0.0199,25846.0,25845.0,0.86959977]
[1693968735879,0.19438519,25846.0,25845.0,0.86959977]
[1693968736582,0.33438519,25846.0,25845.0,0.86959977]
[1693968738803,0.33438519,25846.0,25845.0,1.64344377]
[1693968738955,0.1599,25846.0,25845.0,1.64344377]
[1693968740644,0.44912232,25846.0,25845.0,0.005]
[1693968742181,0.46242773,25846.0,25845.0,0.005]
[1693968749056,0.46242773,25846.0,25845.0,0.778844]
[1693968749564,0.55520201,25846.0,25845.0,0.778844]
[1693968749777,0.75767099,25846.0,25845.0,0.778844]
[1693968750597,0.66489671,25846.0,25845.0,0.778844]
[1693968753813,0.66489671,25846.0,25845.0,1.552688]
[1693968754012,0.46242773,25846.0,25845.0,1.552688]
[1693968757950,0.17320541,25846.0,25845.0,1.552688]
[1693968758153,0.17320541,25846.0,25845.0,2.326532]
[1693968758436,0.17320541,25846.0,25845.0,2.447032]
[1693968781647,0.17320541,25846.0,25845.0,3.56222796]
[1693968781847,0.17320541,25846.0,25845.0,3.86222796]
[1693968782050,0.1599,25846.0,25845.0,3.86222796]
[1693968782680,0.1599,25846.0,25845.0,3.85722796]
[1693968782882,0.1599,25846.0,25845.0,3.87922796]
[1693968783120,0.1599,25846.0,25845.0,3.90322796]
[1693968783650,0.1599,25846.0,25845.0,3.88122796]
[1693968784876,0.1599,25846.0,25845.0,3.90322796]
[1693968785525,0.1599,25846.0,25845.0,4.67707196]
[1693968785727,0.1599,25846.0,25845.0,4.71707196]
[1693968786143,0.1599,25846.0,25845.0,4.69507196]
[1693968786273,0.1599,25846.0,25845.0,5.08171723]
[1693968786474,0.1599,25846.0,25845.0,5.08271723]
[1693968786676,0.1599,25846.0,25845.0,5.10771723]
[1693968787108,0.1599,25846.0,25845.0,5.08271723]
[1693968787453,0.1599,25846.0,25845.0,5.10771723]
[1693968788246,0.1599,25846.0,25845.0,5.08271723]
[1693968788603,0.1599,25846.0,25845.0,5.10771723]
[1693968790068,0.1599,25846.0,25845.0,5.08771723]
[1693968790243,0.1599,25846.0,25845.0,5.11815495]
[1693968795714,0.1599,25846.0,25845.0,5.12995354]
[1693968796352,0.1599,25846.0,25845.0,4.74330827]
[1693968796556,0.1599,25846.0,25845.0,4.73150968]
[1693968811362,0.1599,25846.0,25845.0,5.11815495]
[1693968811605,0.1599,25846.0,25845.0,4.73150968]
[1693968820829,0.1599,25846.0,25845.0,5.11815495]
[1693968821032,0.0020138,25848.0,25847.0,0.02]
[1693968821253,0.0020138,25848.0,25847.0,4.51656527]
[1693968821455,0.0020138,25848.0,25847.0,6.02413917]
[1693968822457,0.0020138,25848.0,25847.0,6.04913917]
[1693968822658,0.0020138,25848.0,25847.0,6.07413917]
[1693968823079,0.0020138,25848.0,25847.0,6.11413917]
[1693968823288,0.1420138,25848.0,25847.0,6.11413917]
[1693968823537,0.1420138,25848.0,25847.0,6.08913917]
[1693968823734,0.1420138,25848.0,25847.0,6.11413917]
[1693968824235,0.1420138,25848.0,25847.0,5.99363917]
[1693968824812,0.0020138,25848.0,25847.0,5.96863917]
[1693968825178,0.0020138,25848.0,25847.0,5.94363917]
[1693968825517,0.0020138,25848.0,25847.0,5.96863917]
[1693968825681,0.0020138,25848.0,25847.0,5.99363917]
[1693968825887,0.0020138,25848.0,25847.0,5.96863917]
[1693968826534,0.0020138,25848.0,25847.0,5.99363917]
[1693968828370,0.0020138,25848.0,25847.0,5.90126123]
[1693968833248,0.0020138,25848.0,25847.0,5.95893977]
[1693968837317,0.0020138,25848.0,25847.0,5.51461596]
[1693968837749,0.0020138,25848.0,25847.0,4.74083196]
[1693968839183,0.01288494,25848.0,25847.0,4.74083196]
[1693968840215,0.0020138,25848.0,25847.0,4.74083196]
[1693968840959,0.01288311,25848.0,25847.0,4.74083196]
[1693968843344,0.01288311,25848.0,25847.0,4.68083196]
[1693968843544,0.2852089,25848.0,25847.0,0.823784]
[1693968843751,0.2852089,25848.0,25847.0,1.597568]
[1693968844561,0.2852089,25848.0,25847.0,1.572568]
[1693968844812,0.2852089,25848.0,25847.0,0.798784]
[1693968845014,0.2852089,25848.0,25847.0,0.773784]
[1693968845219,0.67185417,25848.0,25847.0,1.098784]
[1693968845424,0.67185417,25848.0,25847.0,1.123784]
[1693968846029,0.67185417,25848.0,25847.0,1.098784]
[1693968846452,0.67185417,25848.0,25847.0,2.791852]
[1693968851759,0.2852089,25848.0,25847.0,2.791852]
[1693968855347,0.2852089,25848.0,25847.0,1.897568]
[1693968855569,0.2852089,25848.0,25847.0,2.671352]
[1693968871511,0.2852089,25848.0,25847.0,2.791852]
[1693968890431,0.2852089,25848.0,25847.0,2.671352]
[1693968892945,0.2852089,25848.0,25847.0,2.791852]
[1693968918437,0.01288311,25848.0,25847.0,2.791852]
[1693968922218,0.0020138,25848.0,25847.0,2.791852]
[1693968925500,0.0020138,25848.0,25847.0,2.88439028]
[1693968926509,0.0020138,25848.0,25847.0,2.791852]
[1693968935233,0.0020138,25848.0,25847.0,3.17849727]
[1693968935855,0.0020138,25848.0,25847.0,3.20878661]
[1693968940403,0.0020138,25848.0,25847.0,2.82214134]
[1693968940801,0.02106391,25848.0,25847.0,2.791852]
[1693968941000,0.24702092,25848.0,25847.0,2.791852]
[1693968941797,0.24702092,25848.0,25847.0,0.35]
[1693968942633,0.63366619,25848.0,25847.0,0.35]
[1693968943057,1.40742019,25848.0,25847.0,0.35]
[1693968943350,0.93976257,25848.0,25847.0,0.35]
[1693968944367,0.63366619,25848.0,25847.0,0.35]
[1693968944579,0.63366619,25848.0,25847.0,1.123784]
[1693968945959,0.63366619,25848.0,25847.0,1.897568]
[1693968947303,0.63366619,25848.0,25847.0,2.671352]
[1693968950490,0.63366619,25848.0,25847.0,1.897568]
[1693968955771,0.24702092,25848.0,25847.0,1.897568]
[1693968955972,0.24702092,25848.0,25847.0,2.671352]
[1693968959991,0.63366619,25848.0,25847.0,1.897568]
[1693968960529,0.86801391,25848.0,25847.0,1.897568]
[1693968961065,0.86801391,25848.0,25847.0,2.671352]
[1693968961271,0.63366619,25848.0,25847.0,2.671352]
[1693968961486,0.63366619,25848.0,25847.0,2.791852]
[1693968961487,0.02106391,25848.0,25847.0,2.791852]
[1693968964858,0.25983253,25848.0,25847.0,2.791852]
[1693968968302,0.02106391,25848.0,25847.0,2.791852]
[1693968969159,0.0020138,25848.0,25847.0,2.791852]
[1693968977919,0.01562066,25848.0,25847.0,2.791852]
[1693968981155,0.0020138,25848.0,25847.0,2.791852]
[1693968981361,0.01562066,25848.0,25847.0,2.811852]
[1693968981774,0.0020138,25848.0,25847.0,2.811852]
[1693968983211,0.0020138,25848.0,25847.0,2.94439028]
[1693968983423,0.0020138,25848.0,25847.0,4.72891334]
[1693968984258,0.0020138,25848.0,25847.0,4.70391334]
[1693968984469,0.0020138,25848.0,25847.0,4.55841334]
[1693968984686,0.0020138,25848.0,25847.0,3.83462934]
[1693968984894,0.0020138,25848.0,25847.0,3.80962934]
[1693968985098,0.0020138,25848.0,25847.0,3.83462934]
[1693968985478,0.0020138,25848.0,25847.0,3.92705109]
[1693968986035,0.0020138,25848.0,25847.0,3.90205109]
[1693968986236,0.0020138,25848.0,25847.0,3.92705109]
[1693968986680,0.0020138,25848.0,25847.0,3.46972644]
[1693968987534,0.0020138,25848.0,25847.0,3.33091902]
[1693968988744,0.0020138,25848.0,25847.0,3.30591902]
[1693968989011,0.0020138,25848.0,25847.0,3.28091902]
[1693968989231,0.0020138,25848.0,25847.0,3.30591902]
[1693968990236,0.0020138,25848.0,25847.0,3.33091902]
[1693968992671,0.0020138,25848.0,25847.0,3.23849727]
[1693969000331,0.0020138,25848.0,25847.0,2.851852]
[1693969001515,0.0020138,25848.0,25847.0,2.94427375]
[1693969010637,0.0020138,25848.0,25847.0,3.33091902]
[1693969010964,0.0020138,25848.0,25847.0,3.83461223]
[1693969014131,0.0020138,25848.0,25847.0,3.46972284]
[1693969014334,0.0020138,25848.0,25847.0,3.33091542]
[1693969014929,0.0020138,25848.0,25847.0,3.46972284]
[1693969016653,0.0020138,25848.0,25847.0,3.92704668]
[1693969017413,0.0020138,25848.0,25847.0,3.46972284]
[1693969017938,0.0020138,25848.0,25847.0,2.94427015]
[1693969019499,0.0020138,25848.0,25847.0,3.08307757]
[1693969022704,0.0020138,25848.0,25847.0,3.54041221]
[1693969022821,0.0020138,25848.0,25847.0,3.08307757]
[1693969023628,0.0020138,25848.0,25847.0,3.54041235]
[1693969024541,0.0020138,25848.0,25847.0,3.5404834]
[1693969024759,0.0020138,25848.0,25847.0,3.4479942]
[1693969029250,0.0020138,25848.0,25847.0,4.11225436]
[1693969029713,0.0020138,25848.0,25847.0,3.88090866]
[1693969031827,0.05002284,25853.0,25852.0,0.02]
[1693969032043,0.05002284,25853.0,25852.0,4.16332811]